[Event "17th Delhi GM Open 2019"]
[Site "Delhi"]
[Date "2019.01.14"]
[Round "8"]
[White "Aaryan Varshney"]
[Black "Muthaiah AL"]
[Result "0-1"]
[ECO "A43"]
[WhiteElo "2225"]
[BlackElo "2406"]
[Annotator "ChessBase"]
[PlyCount "71"]
[EventDate "2019.01.09"]
[EventType "swiss"]
[EventCountry "IND"]
[SourceTitle "playchess.com"]
[Source "ChessBase"]
[SourceQuality "1"]
[TimeControl "5400+30"]

1. d4 {[%emt 0:00:00]} Nf6 {[%emt 0:00:48]} 2. Nf3 {[%emt 0:00:00]} c5 {[%emt 0:00:21]} 3. d5 {[%emt 0:00:00]} b5 {[%emt 0:01:01]} 4. c4 {[%emt 0:07:45]} g6 {[%emt 0:02:59]} 5. b3 {[%emt 0:06:39]} Bg7 {[%emt 0:06:57]} 6. Bb2 {[%emt 0:01:38]} bxc4 {[%emt 0:03:46]} 7. bxc4 {[%emt 0:01:42]} O-O {[%emt 0:02:25]} 8. Nbd2 {[%emt 0:08:21]} d6 {[%emt 0:03:17]} 9. e3 {[%emt 0:06:28]} Bf5 {[%emt 0:09:37]} 10. Be2 {[%emt 0:01:42]} Na6 {[%emt 0:03:00]} 11. O-O {[%emt 0:02:30]} Qa5 {[%emt 0:04:56]} 12. Qc1 {[%emt 0:05:34]} Nb4 {[%emt 0:08:01]} 13. a3 {[%emt 0:13:08]} Nd3 {[%emt 0:13:30]} 14. Qc3 {[%emt 0:01:21]} Qxc3 {[%emt 0:12:18]} 15. Bxc3 {[%emt 0:00:04]} Rfb8 {[%emt 0:02:52]} 16. Ra2 {[%emt 0:06:11]} Ng4 {[%emt 0:12:34]} 17. Bxg7 {[%emt 0:03:03]} Kxg7 {[%emt 0:00:02]} 18. h3 {[%emt 0:17:22]} Nge5 {[%emt 0:01:51]} 19. Nxe5 {[%emt 0:08:00]} Nxe5 {[%emt 0:00:16]} 20. f4 {[%emt 0:02:44]} Bd3 {[%emt 0:00:23]} 21. fxe5 {[%emt 0:01:01]} Bxe2 {[%emt 0:00:03]} 22. Re1 {[%emt 0:00:22]} Bd3 {[%emt 0:00:11]} 23. exd6 {[%emt 0:00:02]} exd6 {[%emt 0:00:09]} 24. e4 {[%emt 0:00:06]} Rb6 {[%emt 0:06:47]} 25. Kf2 {[%emt 0:02:06]} Rab8 {[%emt 0:00:44]} 26. e5 {[%emt 0:00:33]} dxe5 {[%emt 0:00:38]} 27. Rxe5 {[%emt 0:00:10]} h5 {[%emt 0:01:23]} 28. h4 {[%emt 0:03:00]} Bf5 {[%emt 0:01:02]} 29. g3 {[%emt 0:01:34]} Rb2 {[%emt 0:00:35]} 30. Rxb2 {[%emt 0:00:10]} Rxb2 {[%emt 0:00:01]} 31. Ke3 {[%emt 0:00:33]} Kf6 {[%emt 0:01:33]} 32. Re8 {[%emt 0:00:05]} Ra2 {[%emt 0:00:22]} 33. Nf3 {[%emt 0:01:24]} Rxa3+ {[%emt 0:00:50]} 34. Kf4 {[%emt 0:00:24]} a5 {[%emt 0:01:01]} 35. Ne5 {[%emt 0:01:14]} Ra1 {[%emt 0:00:12]} 36. d6 {[%emt 0:00:32]} 0-1

[Event "17th Delhi GM Open 2019"]
[Site "Delhi"]
[Date "2019.01.14"]
[Round "8"]
[White "Bharat Kumar Reddy Poluri"]
[Black "Sammed Jaykumar, Shete"]
[Result "0-1"]
[ECO "B31"]
[WhiteElo "2197"]
[BlackElo "2395"]
[Annotator "ChessBase"]
[PlyCount "110"]
[EventDate "2019.01.09"]
[EventType "swiss"]
[EventCountry "IND"]
[SourceTitle "playchess.com"]
[Source "ChessBase"]
[SourceQuality "1"]
[TimeControl "5400+30"]

1. e4 {[%emt 0:00:00]} c5 {[%emt 0:00:00]} 2. Nf3 Nc6 3. Bb5 {[%emt 0:00:34]} g6 {[%emt 0:00:23]} 4. O-O {[%emt 0:00:24]} Bg7 {[%emt 0:00:05]} 5. d3 {[%emt 0:01:37]} Nf6 {[%emt 0:00:50]} 6. h3 {[%emt 0:04:26]} O-O {[%emt 0:00:13]} 7. Bxc6 {[%emt 0:03:35]} bxc6 {[%emt 0:00:09]} 8. Nc3 {[%emt 0:01:19]} d6 {[%emt 0:00:16]} 9. Be3 {[%emt 0:01:37]} h6 {[%emt 0:00:08]} 10. Qd2 {[%emt 0:04:08]} Kh7 {[%emt 0:01:47]} 11. a3 {[%emt 0:00:25]} a5 {[%emt 0:02:46]} 12. b3 {[%emt 0:06:34]} e5 {[%emt 0:03:42]} 13. Nh2 {[%emt 0:00:48]} Nh5 {[%emt 0:00:28]} 14. f4 {[%emt 0:03:25]} exf4 {[%emt 0:15:24]} 15. Bxf4 {[%emt 0:00:03]} Nxf4 {[%emt 0:00:09]} 16. Rxf4 {[%emt 0:00:03]} Bxh3 {[%emt 0:00:38]} 17. Raf1 Be6 {[%emt 0:01:09]} 18. Ne2 {[%emt 0:05:05]} a4 {[%emt 0:19:49]} 19. b4 {[%emt 0:00:36]} Qb6 {[%emt 0:05:28]} 20. Kh1 {[%emt 0:01:10]} cxb4 {[%emt 0:00:24]} 21. axb4 {[%emt 0:00:03]} a3 {[%emt 0:00:21]} 22. c3 {[%emt 0:00:37]} a2 {[%emt 0:00:49]} 23. Ra1 {[%emt 0:00:12]} c5 {[%emt 0:00:16]} 24. bxc5 {[%emt 0:00:29]} dxc5 {[%emt 0:00:31]} 25. Rff1 {[%emt 0:00:58]} Qb3 {[%emt 0:00:46]} 26. Nf3 {[%emt 0:00:17]} Rfd8 {[%emt 0:02:32]} 27. e5 {[%emt 0:00:58]} Bc4 {[%emt 0:03:41]} 28. Nf4 {[%emt 0:01:22]} Be6 {[%emt 0:05:23]} 29. d4 {[%emt 0:02:51]} Bc4 {[%emt 0:02:04]} 30. Rfc1 {[%emt 0:00:39]} Rab8 {[%emt 0:01:44]} 31. Qe1 {[%emt 0:02:06]} Qa3 {[%emt 0:04:25]} 32. Nd2 {[%emt 0:02:12]} Be6 {[%emt 0:00:13]} 33. Nxe6 {[%emt 0:00:27]} fxe6 {[%emt 0:00:05]} 34. Rc2 {[%emt 0:03:01]} cxd4 {[%emt 0:01:46]} 35. Raxa2 {[%emt 0:03:52]} Qf8 {[%emt 0:01:59]} 36. cxd4 {[%emt 0:02:05]} Rxd4 {[%emt 0:00:05]} 37. Nf3 {[%emt 0:02:27]} Rf4 {[%emt 0:00:59]} 38. Rc7 {[%emt 0:03:32]} Kh8 {[%emt 0:08:24]} 39. Kh2 {[%emt 0:20:08]} Rxf3 {[%emt 0:04:52]} 40. gxf3 {[%emt 0:00:39]} Qf4+ {[%emt 0:00:16]} 41. Kg1 {[%emt 0:00:58]} Bxe5 {[%emt 0:00:16]} 42. Rcc2 {[%emt 0:04:00]} Qg5+ {[%emt 0:02:48]} 43. Kf1 {[%emt 0:01:29]} Qh5 {[%emt 0:01:50]} 44. Qe4 {[%emt 0:02:01]} Bg3 {[%emt 0:07:48]} 45. Ke2 {[%emt 0:07:25]} Qh1 {[%emt 0:01:43]} 46. Qd4+ {[%emt 0:04:03]} e5 {[%emt 0:00:15]} 47. Qd1 {[%emt 0:00:07]} Qh2+ {[%emt 0:01:14]} 48. Ke3 {[%emt 0:03:09]} Rb3+ {[%emt 0:01:58]} 49. Ke4 {[%emt 0:01:05]} Qh4+ {[%emt 0:00:06]} 50. Kd5 {[%emt 0:01:29]} Qd8+ {[%emt 0:00:06]} 51. Kc4 {[%emt 0:00:09]} Qxd1 {[%emt 0:00:06]} 52. Kxb3 {[%emt 0:00:14]} Qxf3+ {[%emt 0:00:05]} 53. Rc3 {[%emt 0:00:04]} Qf7+ {[%emt 0:01:04]} 54. Kb2 {[%emt 0:00:16]} Bf2 {[%emt 0:00:11]} 55. Ra8+ {[%emt 0:00:24]} Kg7 {[%emt 0:00:06]} 0-1

[Event "17th Delhi GM Open 2019"]
[Site "Delhi"]
[Date "2019.01.15"]
[Round "9"]
[White "Muthaiah AL"]
[Black "Swati Ghate"]
[Result "1-0"]
[ECO "D47"]
[WhiteElo "2406"]
[BlackElo "2216"]
[Annotator "NA"]
[PlyCount "97"]
[EventDate "2019.01.09"]
[EventType "swiss"]
[EventCountry "IND"]
[SourceTitle "playchess.com"]
[Source "ChessBase"]
[SourceQuality "1"]
[TimeControl "5400+30"]

1. Nf3 {[%emt 0:00:00]} d5 {[%emt 0:00:44]} 2. c4 {[%emt 0:00:24]} c6 {[%emt 0:00:15]} 3. d4 {[%emt 0:00:30]} Nf6 {[%emt 0:00:24]} 4. Nc3 {[%emt 0:00:11]} e6 {[%emt 0:00:29]} 5. e3 {[%emt 0:01:53]} Nbd7 {[%emt 0:01:26]} 6. Bd3 $11 {[%emt 0:01:03] LiveBook: 8340 Games} dxc4 {[%emt 0:03:02]} 7. Bxc4 {[%emt 0:00:08]} b5 {[%emt 0:00:01]} 8. Bd3 {[%emt 0:02:56]} Bd6 {[%emt 0:02:00]} 9. O-O {[%emt 0:02:29]} O-O {[%emt 0:05:13]} 10. a3 {[%emt 0:11:42]} Bb7 {[%emt 0:01:39]} 11. e4 {[%emt 0:04:26]} e5 {[%emt 0:00:25]} 12. h3 {[%emt 0:01:53]} a6 {[%emt 0:09:12]} 13. Bg5 {[%emt 0:04:45]} h6 {[%emt 0:03:19]} 14. Be3 {[%emt 0:05:38]} Qc7 {[%emt 0:09:47]} 15. Rc1 {[%emt 0:10:04]} Rad8 {[%emt 0:02:47]} 16. Nd5 {[%emt 0:06:14]} Qb8 {[%emt 0:10:19]} 17. Nxf6+ {[%emt 0:07:12]} Nxf6 {[%emt 0:00:02]} 18. dxe5 {[%emt 0:02:51]} Bxe5 {[%emt 0:00:02]} 19. Nxe5 {[%emt 0:00:19]} Qxe5 {[%emt 0:00:02]} 20. Qc2 {[%emt 0:00:23]} Rfe8 {[%emt 0:00:10]} 21. f4 {[%emt 0:02:38]} Qh5 {[%emt 0:10:01]} 22. Bb6 {[%emt 0:14:28]} Rd7 {[%emt 0:02:17]} 23. e5 {[%emt 0:02:20]} Nd5 {[%emt 0:01:18]} 24. Bc5 {[%emt 0:00:59]} Qh4 {[%emt 0:04:53]} 25. Bh7+ {[%emt 0:03:25]} Kh8 {[%emt 0:00:07]} 26. Bf5 {[%emt 0:00:04]} Rdd8 {[%emt 0:04:16]} 27. Qf2 {[%emt 0:00:33]} Qxf2+ {[%emt 0:00:53]} 28. Rxf2 {[%emt 0:00:02]} a5 {[%emt 0:02:02]} 29. Re1 {[%emt 0:03:54]} a4 {[%emt 0:01:16]} 30. g4 {[%emt 0:00:43]} Bc8 {[%emt 0:04:21]} 31. Bb1 {[%emt 0:01:00]} Kg8 {[%emt 0:00:45]} 32. f5 {[%emt 0:00:53]} Ba6 {[%emt 0:03:35]} 33. e6 {[%emt 0:01:32]} Bc8 {[%emt 0:02:12]} 34. e7 {[%emt 0:01:56]} Rd7 {[%emt 0:00:02]} 35. h4 {[%emt 0:01:48]} Nc7 {[%emt 0:02:54]} 36. f6 {[%emt 0:04:41]} Na6 {[%emt 0:00:16]} 37. Bb6 {[%emt 0:01:03]} Rd6 {[%emt 0:05:40]} 38. g5 {[%emt 0:00:31]} c5 {[%emt 0:01:30]} 39. Bd8 {[%emt 0:00:07]} c4 {[%emt 0:02:09]} 40. Bf5 {[%emt 0:00:41]} Bxf5 {[%emt 0:02:11]} 41. Rxf5 {[%emt 0:00:01]} b4 {[%emt 0:00:00]} 42. fxg7 {[%emt 0:00:22]} hxg5 {[%emt 0:03:09]} 43. hxg5 {[%emt 0:00:11]} c3 {[%emt 0:02:24]} 44. bxc3 {[%emt 0:00:01]} bxc3 {[%emt 0:00:08]} 45. Rf6 {[%emt 0:01:08]} Rxf6 {[%emt 0:01:26]} 46. gxf6 {[%emt 0:00:01]} Nc5 {[%emt 0:00:01]} 47. Ba5 {[%emt 0:00:57]} c2 {[%emt 0:01:15]} 48. Bd2 {[%emt 0:00:40]} Nd3 {[%emt 0:00:41]} 49. Re4 {[%emt 0:01:14]} 1-0

[Event "17th Delhi GM Open 2019"]
[Site "Delhi"]
[Date "2019.01.16"]
[Round "10"]
[White "Nitin, S.."]
[Black "Nayak Rajesh"]
[Result "1-0"]
[ECO "B00"]
[WhiteElo "2442"]
[BlackElo "2181"]
[Annotator "NA"]
[PlyCount "41"]
[EventDate "2019.01.09"]
[EventType "swiss"]
[EventCountry "IND"]
[SourceTitle "playchess.com"]
[Source "ChessBase"]
[SourceQuality "1"]
[TimeControl "5400+30"]

1. e4 {[%emt 0:00:04]} {Predecessor:} e5 $146 2. Nf3 Nc6 3. Bb5 Nf6 4. O-O Nxe4 5. d4 Nd6 6. Bxc6 dxc6 7. dxe5 Nf5 8. Qxd8+ Kxd8 9. Nc3 Ke8 10. h3 h5 11. Bf4 Be7 12. Rad1 Be6 13. Ng5 Rh6 14. g3 Bxg5 15. Bxg5 Rg6 16. Bf4 Nh4 17. Kh1 Nf3 18. Kg2 Nh4+ 19. Kh1 Nf3 20. Kg2 Nh4+ 21. Kh1 {½-½ (21) Lupulescu,C (2601)-Parligras,M (2645) Sovata 2018} 1-0

[Event "17th Delhi GM Open 2019"]
[Site "Delhi"]
[Date "2019.01.16"]
[Round "10"]
[White "Sammed Jaykumar, Shete"]
[Black "Ziatdinov, Raset"]
[Result "1-0"]
[ECO "C50"]
[WhiteElo "2395"]
[BlackElo "2248"]
[Annotator "NA"]
[PlyCount "113"]
[EventDate "2019.01.09"]
[EventType "swiss"]
[EventCountry "IND"]
[SourceTitle "playchess.com"]
[Source "ChessBase"]
[SourceQuality "1"]
[TimeControl "5400+30"]

1. e4 {[%emt 0:00:00]} e5 {[%emt 0:00:00]} 2. Nf3 {[%emt 0:00:00]} Nc6 {[%emt 0:00:00]} 3. Bc4 {[%emt 0:00:00]} Nf6 {[%emt 0:00:00]} 4. d3 {[%emt 0:00:00]} Bc5 {[%emt 0:00:31]} 5. c3 {[%emt 0:00:00]} O-O {[%emt 0:00:14]} 6. Bb3 {[%emt 0:00:35]} d6 {[%emt 0:01:01]} 7. h3 {[%emt 0:02:07] C54: Giuoco Piano: 4 c3 Nf6, main lines with 5 d4 and 5 d3} Be6 {[%emt 0:00:34]} (7... a6 8. Nbd2 Be6 9. Bc2 d5 10. Qe2 h6 11. g4 Nh7 12. Rg1 d4 13. Nb3 Be7 14. Nxe5 Nxe5 15. Nxd4 c5 16. Nf5 Kh8 {1-0 (35) Duda,J (2678)-Eljanov,P (2741) Germany 2017}) 8. Bc2 {[%emt 0:00:11]} d5 {[%emt 0:00:33]} 9. Nbd2 {[%emt 0:01:03]} d4 $146 {[%emt 0:01:06]} ({Predecessor:} 9... b5 10. Qe2 d4 11. cxd4 Bxd4 12. a3 Qd6 13. Nb3 Bb6 14. Be3 Rad8 {0-1 (22) Chaithanyaa,K (2061)-Ziatdinov,R (2354) New Delhi 2013}) 10. O-O {[%emt 0:04:02]} b5 {[%emt 0:01:07]} 11. Nb3 {[%emt 0:00:51]} Bb6 {[%emt 0:01:18]} 12. cxd4 {[%emt 0:01:36]} Bxb3 {[%emt 0:01:42]} 13. dxe5 {[%emt 0:09:40]} Bxc2 {[%emt 0:17:43]} 14. Qxc2 {[%emt 0:00:46]} Nb4 {[%emt 0:00:08]} 15. Qb3 {[%emt 0:01:12]} Qxd3 {[%emt 0:03:22]} 16. exf6 {[%emt 0:12:09]} Qxb3 {[%emt 0:00:15]} 17. axb3 {[%emt 0:00:08]} gxf6 {[%emt 0:00:14]} 18. Bd2 {[%emt 0:02:30]} Nd3 {[%emt 0:03:26]} 19. Bc3 {[%emt 0:00:08]} Rfe8 {[%emt 0:01:11]} 20. Rad1 {[%emt 0:01:33]} Nc5 {[%emt 0:02:04]} 21. Bxf6 {[%emt 0:04:53]} Nxe4 {[%emt 0:02:44]} 22. Bh4 {[%emt 0:00:51]} f6 {[%emt 0:06:17]} 23. Nd4 {[%emt 0:01:30]} Re5 {[%emt 0:08:16]} 24. g4 {[%emt 0:01:41]} Rae8 {[%emt 0:02:01]} 25. Nf5 {[%emt 0:03:21]} Ng5 {[%emt 0:10:03]} 26. Kg2 {[%emt 0:01:58]} R5e6 {[%emt 0:00:56]} 27. Rd5 {[%emt 0:04:10]} c6 {[%emt 0:03:42]} 28. Rd7 {[%emt 0:01:20]} Nf7 {[%emt 0:01:20]} 29. Rfd1 {[%emt 0:05:15]} Rd8 {[%emt 0:05:13]} 30. Nh6+ {[%emt 0:02:25]} Nxh6 {[%emt 0:00:10]} 31. Rxd8+ {[%emt 0:00:03]} Bxd8 $16 {[%emt 0:00:10]} 32. Rxd8+ {[%emt 0:00:04]} Kf7 {[%emt 0:00:24]} 33. Ra8 {[%emt 0:00:04]} Kg6 {[%emt 0:12:15]} 34. Rxa7 {[%emt 0:00:40]} f5 {[%emt 0:00:07]} 35. Kg3 {[%emt 0:01:17]} fxg4 {[%emt 0:02:52]} 36. hxg4 {[%emt 0:00:21]} Nf7 {[%emt 0:02:05]} 37. Rc7 {[%emt 0:03:54]} Nd6 {[%emt 0:02:14]} 38. f3 {[%emt 0:04:26]} h5 {[%emt 0:00:31]} 39. Re7 {[%emt 0:04:01]} Rxe7 {[%emt 0:00:39]} 40. Bxe7 {[%emt 0:00:10]} Ne8 {[%emt 0:01:06]} 41. gxh5+ {[%emt 0:00:45]} Kxh5 {[%emt 0:00:02]} 42. Kf4 {[%emt 0:00:16]} Kg6 {[%emt 0:00:27]} 43. Ke5 {[%emt 0:00:21]} Ng7 {[%emt 0:01:29]} 44. Bc5 {[%emt 0:02:52]} Nf5 {[%emt 0:00:27]} 45. f4 {[%emt 0:04:25]} Nh4 {[%emt 0:01:19]} 46. Ke6 {[%emt 0:01:07]} Nf5 {[%emt 0:01:09]} 47. b4 {[%emt 0:00:35]} Ng3 {[%emt 0:00:52]} 48. Kd7 {[%emt 0:01:08]} Ne2 {[%emt 0:00:27]} 49. Bd6 {[%emt 0:01:32]} Nd4 {[%emt 0:00:19]} 50. Be5 {[%emt 0:00:04]} Nc2 {[%emt 0:00:16]} 51. Kxc6 {[%emt 0:00:15]} Nxb4+ {[%emt 0:00:12]} 52. Kxb5 {[%emt 0:00:05]} Nd5 {[%emt 0:01:10]} 53. Kc5 {[%emt 0:00:10]} Ne7 54. b4 {[%emt 0:00:07]} Kf5 {[%emt 0:00:24]} 55. b5 {[%emt 0:00:26]} Ke6 {[%emt 0:00:04]} 56. b6 {[%emt 0:00:06]} Kd7 {[%emt 0:00:21]} 57. b7 {[%emt 0:00:04]} 1-0

[Event "17th Delhi GM Open 2019"]
[Site "Delhi"]
[Date "2019.01.16"]
[Round "10"]
[White "Koustav Chatterjee"]
[Black "Kurbonboeva, Sarvinoz"]
[Result "1/2-1/2"]
[ECO "D71"]
[WhiteElo "2346"]
[BlackElo "2214"]
[Annotator "NA"]
[PlyCount "120"]
[EventDate "2019.01.09"]
[EventType "swiss"]
[EventCountry "IND"]
[SourceTitle "playchess.com"]
[Source "ChessBase"]
[SourceQuality "1"]
[TimeControl "5400+30"]

1. d4 {[%emt 0:00:00]} Nf6 {[%emt 0:00:00]} 2. c4 {[%emt 0:00:00]} g6 {[%emt 0:00:00]} 3. g3 {[%emt 0:00:00]} c6 {[%emt 0:01:57]} 4. Bg2 {[%emt 0:00:24]} d5 {[%emt 0:00:23]} 5. Qa4 {[%emt 0:00:15]} Nbd7 {[%emt 0:06:04]} 6. cxd5 {[%emt 0:00:38]} Nb6 {[%emt 0:00:15]} 7. Qb3 {[%emt 0:00:38]} cxd5 {[%emt 0:00:25]} 8. Nc3 {[%emt 0:00:16]} Bg7 {[%emt 0:01:54]} 9. Nf3 {[%emt 0:03:56]} O-O {[%emt 0:04:27]} 10. O-O {[%emt 0:05:10]} Ne4 {[%emt 0:07:25] D78: Fianchetto Grünfeld: 6 0-0 c6} 11. Bf4 {[%emt 0:04:35]} Nxc3 {[%emt 0:25:32]} 12. Qxc3 {[%emt 0:25:34]} Nc4 $146 {[%emt 0:00:24]} ({Predecessor:} 12... Bg4 13. Rac1 Qd7 14. Ne5 Bxe5 15. dxe5 Rfc8 16. Qb4 Rxc1 17. Rxc1 Rc8 18. Qa5 Rxc1+ 19. Bxc1 {1-0 (30) Van Wely,L (2664)-Dranov,A (2443) Germany 2015}) 13. Rac1 {[%emt 0:01:23]} Nb6 {[%emt 0:00:00]} 14. Ra1 {[%emt 0:00:00]} Nc4 {[%emt 0:01:00]} 15. Rac1 {[%emt 0:01:00]} Bf5 {[%emt 0:05:00]} 16. b3 {[%emt 0:05:43]} Nd6 {[%emt 0:00:24]} 17. Qb4 {[%emt 0:01:19]} a5 {[%emt 0:10:18]} 18. Qa3 {[%emt 0:05:34]} Be4 {[%emt 0:03:41]} 19. Bxd6 {[%emt 0:02:27]} Qxd6 {[%emt 0:00:06]} 20. Qxd6 {[%emt 0:00:36]} exd6 {[%emt 0:00:04]} 21. e3 {[%emt 0:01:03]} Rfc8 {[%emt 0:01:08]} 22. Ng5 {[%emt 0:02:49]} Bxg2 {[%emt 0:03:00]} 23. Kxg2 {[%emt 0:00:43]} Rc6 {[%emt 0:00:11]} 24. Rxc6 $14 {[%emt 0:06:42]} bxc6 {[%emt 0:00:27]} 25. Rc1 {[%emt 0:00:04]} Rc8 {[%emt 0:02:08]} 26. h4 {[%emt 0:00:29]} h5 {[%emt 0:02:49]} 27. Kf3 {[%emt 0:05:16]} Bh6 {[%emt 0:01:16]} 28. Nh3 {[%emt 0:00:07]} Kf8 {[%emt 0:00:08]} 29. g4 {[%emt 0:01:16]} hxg4+ {[%emt 0:00:32]} 30. Kxg4 {[%emt 0:00:05]} Ke7 {[%emt 0:00:39]} 31. Ng1 {[%emt 0:05:23]} Kd7 {[%emt 0:01:50]} 32. Ne2 {[%emt 0:00:12]} c5 {[%emt 0:02:40]} 33. dxc5 {[%emt 0:01:43]} dxc5 {[%emt 0:00:41]} 34. Nc3 {[%emt 0:00:17]} Ke6 {[%emt 0:01:02]} 35. Na4 {[%emt 0:01:32]} Bf8 {[%emt 0:00:09]} 36. Kf3 {[%emt 0:01:32]} Be7 {[%emt 0:00:47]} 37. e4 {[%emt 0:00:45]} dxe4+ {[%emt 0:05:55]} 38. Kxe4 {[%emt 0:00:06]} f5+ {[%emt 0:00:03]} 39. Kf3 {[%emt 0:00:34]} Rc6 {[%emt 0:03:17]} 40. Rc4 {[%emt 0:00:18]} Ke5 {[%emt 0:00:31]} 41. Nb2 {[%emt 0:01:28]} Kd5 {[%emt 0:06:22]} 42. Ra4 {[%emt 0:00:37]} Bd8 {[%emt 0:00:16]} 43. Nc4 {[%emt 0:00:43]} Re6 {[%emt 0:00:50]} 44. Ne3+ {[%emt 0:01:46]} Kc6 {[%emt 0:00:07]} 45. h5 {[%emt 0:02:04]} gxh5 {[%emt 0:01:09]} 46. Nxf5 {[%emt 0:00:07]} Re8 {[%emt 0:01:46]} 47. Ng7 {[%emt 0:02:58]} Re5 48. Re4 {[%emt 0:02:11]} Rxe4 {[%emt 0:01:41]} 49. Kxe4 {[%emt 0:00:06]} h4 {[%emt 0:00:06]} 50. f4 {[%emt 0:05:33]} Kb5 {[%emt 0:02:26]} 51. Ne6 {[%emt 0:01:46]} Be7 {[%emt 0:00:01]} 52. Nc7+ {[%emt 0:00:06]} Kc6 {[%emt 0:00:03]} 53. Nd5 {[%emt 0:00:05]} Bd8 {[%emt 0:00:02]} 54. Ne3 {[%emt 0:00:35]} Kb5 {[%emt 0:00:47]} 55. f5 {[%emt 0:00:56]} a4 {[%emt 0:00:56]} 56. Nd5 {[%emt 0:00:19]} axb3 {[%emt 0:00:41]} 57. axb3 {[%emt 0:00:04]} c4 {[%emt 0:00:08]} 58. bxc4+ {[%emt 0:00:18]} Kxc4 {[%emt 0:00:04]} 59. Nf4 {[%emt 0:00:31]} Bf6 {[%emt 0:00:46]} 60. Nh3 {[%emt 0:01:05]} Kc5 {[%emt 0:00:24]} 1/2-1/2